Cogmind - Beta 11.1 @@@ ROGUE MODE // 2022.05.06 @ 16:44:04 Player: Olga Result: Destroyed by L-31 Rogue with Katana Performance ------------- Evolutions (1) 500 Regions Visited (2) 400 Robots Destroyed (22) 110 Value Destroyed (546) 546 Prototype IDs (0) 0 Alien Tech Used (0) 0 Bonus (0) 0 TOTAL SCORE: 1556 Bonus ------- None Cogmind --------- Core Integrity 0/400 Matter 295/300 Energy 100/100 System Corruption 0% Temperature Cool (0) Movement Treading (160) Location -9/Materials Parts ------- > --- POWER (1) -------- (None) > --- PROPULSION (3) --- Light Treads > --- UTILITY (3) ------ Heat Sink Heat Sink > --- WEAPON (2) ------- (None) > --- INVENTORY (5) ---- Ion Engine Small Storage Unit Small Laser Datajack Peak State ------------ > --- POWER ------------ Ion Engine > --- PROPULSION ------- Aluminum Leg Wheel Compact Wheel > --- UTILITY ---------- Small Storage Unit Signal Interpreter Light Armor Plating > --- WEAPON ----------- Small Laser Particle Cannon > --- INVENTORY -------- Ion Engine Light Nuclear Core Medium Matter Pod Datajack [Rating: 10] Favorites ----------- Power Light Ion Engine Engine Light Ion Engine Propulsion Light Treads Treads Light Treads Leg Aluminum Leg Wheel Wheel Utility Small Storage Unit Device Heat Sink Storage Small Storage Unit Processor Signal Interpreter Protection Light Armor Plating Weapon Light Assault Rifle Energy Gun Small Laser Energy Cannon Particle Cannon Ballistic Gun Light Assault Rifle Build | -11 -10 -9 ------- Run | Scr Mat Mat Slots Evolved 2 | . . 2 Power . | . . . Propulsion 1 | . . 1 Utility 1 | . . 1 Weapon . | . . . Parts Attached 29 | . 7 22 Power 3 | . 1 2 Engine 3 | . 1 2 Core . | . . . Reactor . | . . . Propulsion 10 | . 2 8 Treads 5 | . 2 3 Leg 2 | . . 2 Wheel 3 | . . 3 Hover . | . . . Flight . | . . . Utility 10 | . 2 8 Device 4 | . . 4 Storage 2 | . 2 . Processor 1 | . . 1 Hackware . | . . . Protection 3 | . . 3 Artifact . | . . . Weapon 6 | . 2 4 Energy Gun 3 | . . 3 Energy Cannon 1 | . . 1 Ballistic Gun 2 | . 2 . Ballistic Cannon . | . . . Launcher . | . . . Special Weapon . | . . . Impact Weapon . | . . . Slashing Weapon . | . . . Piercing Weapon . | . . . Special Melee Weapon . | . . . Unidentified Prototypes . | . . . Parts Lost 18 | . 1 17 Power 3 | . 1 2 Propulsion 6 | . . 6 Utility 3 | . . 3 Weapon 6 | . . 6 Highest Loss Streak 9 | . 1 9 To Critical Strikes . | . . . Average Slot Usage (%) 86 | . 88 85 Engine 10 | . 12 9 Treads 19 | . 28 13 Leg 1 | . . 2 Wheel 6 | . . 11 Device 4 | . . 7 Storage 15 | . 18 13 Processor 2 | . . 4 Protection 4 | . . 7 Energy Gun 4 | . . 7 Energy Cannon 3 | . . 6 Ballistic Gun 13 | . 28 3 Naked Turns . | . . . Heaviest Build 19 | 10 12 19 Greatest Support 42 | 20 40 42 Greatest Overweight (x) 2 | . . 2 Average Overweight (x) . | . . . Largest Inventory Capacity 8 | . 8 8 Average Capacity 7 | . 8 7 Most Carried 8 | . 8 8 Average Carried 6 | . 7 6 Final Capacity 8 | 8 8 5 Final Carried 8 | 6 8 4 Class Distribution -------------------- 63% | Mutant 36% | Scavenger-Mutant Dominant Class ---------------- Mutant | -10/Materials Scavenger-Mutant | -9/Materials Resources | -11 -10 -9 ----------- Run | Scr Mat Mat Matter Collected 551 | 200 127 224 Remotely . | . . . Salvage Created 781 | . 210 571 Parts 50 | . 11 39 Haulers Intercepted 1 | . 1 . Recyclers Shooed 1 | . . 1 Parts Field Recycled . | . . . Retrieved Matter . | . . . Parts Self-Destructed . | . . . Prevented . | . . . Kills | -11 -10 -9 ------- Run | Scr Mat Mat Combat Hostiles Destroyed 19 | . 5 14 Guns 13 | . 5 8 Cannons 6 | . . 6 Classes Destroyed 6 | . 4 2 Worker 1 | . 1 . Hauler 1 | . 1 . Recycler 1 | . . 1 Swarmer 7 | . 3 4 Grunt 9 | . 2 7 Sentry 3 | . . 3 Best Kill Streak 4 | . 3 4 Combat Bots Only 4 | . 3 4 Max Kills in Single Turn 1 | . 1 1 Gunslinging . | . . . Exploded . | . . . Melee . | . . . Uniques/NPCs Destroyed . | . . . Combat | -11 -10 -9 -------- Run | Scr Mat Mat Damage Taken 2418 | . 572 1846 Core 542 | . 135 407 Absorbed by Shields . | . . . Core Remaining (%) 73 | 100 46 . Volleys Fired 91 | . 38 53 Largest 2 | . 2 2 Hottest 108 | . 40 108 Shots Fired 174 | . 76 98 Gun 140 | . 76 64 Cannon 34 | . . 34 Launcher . | . . . Special . | . . . Kinetic 102 | . 76 26 Thermal 68 | . . 68 Explosive . | . . . Electromagnetic 4 | . . 4 Robot Hit Streak 14 | . 9 14 Robot Miss Streak 4 | . 4 4 Penetration Max . | . . . Secondary Targets . | . . . Shots Hit Robots 109 | . 42 67 Core Hits 42 | . 15 27 Critical Kills 1 | . 1 . Critical Parts Destroyed . | . . . Critical Strikes 1 | . 1 . Destroy 1 | . 1 . Melee Attacks . | . . . Impact . | . . . Slashing . | . . . Piercing . | . . . Sneak Attacks . | . . . Combat Hostiles . | . . . Follow-up Attacks . | . . . Damage Inflicted 1216 | . 363 853 Guns 848 | . 363 485 Cannons 344 | . . 344 Explosions . | . . . Melee . | . . . Ramming 24 | . . 24 Kinetic 551 | . 363 188 Thermal 596 | . . 596 Explosive . | . . . Electromagnetic 45 | . . 45 Impact . | . . . Slashing . | . . . Piercing . | . . . Highest Corruption . | . . . Average Corruption . | . . . Corruption Purged . | . . . Corruption Blocked . | . . . Overload Shots . | . . . Overflow Damage . | . . . Projectiles . | . . . Explosions . | . . . Melee . | . . . Knockbacks . | . . . Impact . | . . . Kinetic . | . . . Secondary . | . . . Self-Inflicted Damage . | . . . Shots . | . . . Rammed . | . . . Targets Rammed 14 | . . 14 Kicked 14 | . . 14 Crushed . | . . . Highest Temperature 123 | . 34 123 Average Temperature 32 | . 13 37 Received Heat Transfer 948 | . 132 816 Siege Activations . | . . . Robots Corrupted . | . . . Combat Hostiles . | . . . Parts Fried . | . . . Impact Corruptions . | . . . Robots Melted . | . . . Combat Hostiles . | . . . Parts Melted 1 | . . 1 Heat Transferred 1204 | . . 1204 Parts Sabotaged . | . . . Parts Stolen . | . . . Parts Stripped . | . . . Power Chain Reactions . | . . . Missiles Intercepted . | . . . Alert | -11 -10 -9 ------- Run | Scr Mat Mat Peak Influence 262 | . 184 262 Initial 77 | . . 77 Average 115 | . 79 141 Maximum Alert Level 1 | . . 1 Low Security (%) 89 | . 100 82 Level 1 10 | . . 17 Level 2 . | . . . Level 3 . | . . . Level 4 . | . . . Level 5 . | . . . High Security . | . . . Max Security . | . . . Squads Dispatched 1 | . . 1 Investigation . | . . . Extermination . | . . . Reinforcement 1 | . . 1 Assault . | . . . Garrison . | . . . Intercept . | . . . Searches Triggered . | . . . Construction Impeded . | . . . Haulers Reinforced . | . . . Active Scanning Responses . | . . . Cargo Convoy Interrupts . | . . . Stealth | -11 -10 -9 --------- Run | Scr Mat Mat Distress Signals 3 | . 1 2 Communications Jammed . | . . . Distress Signals . | . . . Times Spotted 34 | . 9 25 Peak Tracking Total 8 | . 4 8 Tactical Retreats 2 | . . 2 Traps | -11 -10 -9 ------- Run | Scr Mat Mat Traps Triggered . | . . . Indirectly . | . . . Trap Hack Attempts . | . . . Triggered . | . . . Disarmed . | . . . Reprogrammed . | . . . Reused . | . . . Traps Extracted . | . . . Installed . | . . . Triggered . | . . . Machines | -11 -10 -9 ---------- Run | Scr Mat Mat Machines Disabled . | . . . Max in Single Turn . | . . . Machines Sabotaged . | . . . Garrisons Compromised . | . . . Overloaded Fab Kills . | . . . Hacking | -11 -10 -9 --------- Run | Scr Mat Mat Machines Accessed 2 | . 2 . Terminals 2 | . 2 . Fabricators . | . . . Repair Stations . | . . . Recycling Units . | . . . Scanalyzers . | . . . Garrison Access . | . . . Total Hacks 6 | . 6 . Successful 3 | . 3 . Failed 3 | . 3 . Catastrophic . | . . . Database Lockouts . | . . . Manual 5 | . 5 . Terminals 6 | . 6 . Fabricators . | . . . Repair Stations . | . . . Recycling Units . | . . . Scanalyzers . | . . . Garrison Access . | . . . Terminal Hacks 1 | . 1 . Emergency Access Points 1 | . 1 . Fabricator Hacks . | . . . Repair Station Hacks . | . . . Recycling Unit Hacks . | . . . Scanalyzer . | . . . Garrison Access Hacks . | . . . Unauthorized Hacks 2 | . 2 . Terminals 2 | . 2 . Botnet 2 | . 2 . Fabricators . | . . . Repair Stations . | . . . Recycling Units . | . . . Scanalyzers . | . . . Garrison Access . | . . . Data Cores Recovered . | . . . Used . | . . . Hacking Detections 2 | . 2 . Full Trace Events . | . . . Feedback Events . | . . . Feedback Blocked . | . . . Robot Schematics Acquired . | . . . Robots Built . | . . . Authchips . | . . . Time . | . . . Total Robot Build Rating . | . . . Part Schematics Acquired . | . . . Parts Built . | . . . Authchips . | . . . Time . | . . . Total Part Build Rating . | . . . Parts Repaired . | . . . Time . | . . . Parts Recycled . | . . . Recycled Matter . | . . . Retrieved Matter . | . . . Retrieved Components . | . . . Parts Scanalyzed . | . . . Part Schematics Acquired . | . . . Parts Damaged . | . . . Bothacking | -11 -10 -9 ------------ Run | Scr Mat Mat Used RIF Installer . | . . . Robots Hacked . | . . . Non-combat . | . . . Combat . | . . . Robot Hacks Applied . | . . . Relay Couplers Released . | . . . Fabnet Peak Effective % . | . . . Robots Rewired . | . . . Allies Hacked . | . . . Hacks Repelled . | . . . Allies | -11 -10 -9 -------- Run | Scr Mat Mat Total Allies . | . . . Largest Group . | . . . Highest-Rated Group . | . . . Highest-Rated Ally . | . . . Total Orders . | . . . Ally Attacks . | . . . Total Damage . | . . . Kills . | . . . Allies Corrupted . | . . . Allies Melted . | . . . Intel | -11 -10 -9 ------- Run | Scr Mat Mat Robot Analysis Total . | . . . Derelict Logs Recovered . | . . . Drone Launches . | . . . Drone Recoveries . | . . . Exploration | -11 -10 -9 ------------- Run | Scr Mat Mat Turns Passed 947 | . 395 552 Spaces Moved 416 | 1 177 238 Core 3 | . . 3 Treads 303 | . 177 126 Legs 21 | 1 . 20 Wheels 89 | . . 89 Hover . | . . . Flight . | . . . Fastest Speed 90 | 120 160 90 Average Speed 143 | 120 160 130 Slowest Speed 160 | 120 160 160 Overloaded Moves . | . . . Propulsion Burnouts . | . . . Robots Hopped . | . . . Cave-ins Triggered . | . . . Exploration Rate (%) 24 | 2 40 32 Regions Visited 2 Branch Regions . Pre-discovered Areas . | . . . Known Exits Taken . | . . . Unknown Exits Taken 2 | 1 1 . Scrap Searched . | . . . Spaces Dug . | . . . Terrain Destroyed . | . . . Melee . | . . . Projectile . | . . . AOE . | . . . Terrain Rammed . | . . . Walls Destroyed . | . . . Machines Disabled . | . . . Actions | -11 -10 -9 --------- Run | Scr Mat Mat Total 610 | . 230 380 Wait 38 | . . 38 Move 414 | . 176 238 Hop . | . . . Pick Up 11 | . 4 7 Fast Attach 11 | . 2 9 Attach 7 | . . 7 Detach . | . . . Swap 11 | . 5 6 Drop 13 | . 5 8 Fire 91 | . 38 53 Melee . | . . . Ram . | . . . Kick 14 | . . 14 Crush . | . . . Escape Stasis . | . . . Rewire . | . . . Trap . | . . . Miscellaneous . | . . . Route ------- -11/Scrapyard -10/Materials (discovered 3 exits: [*Mat] / [*Min x2]) -9/Materials History --------- Turn | Location | Event 1 | -11/Scrapyard | Discovered new exit (range 0) 1 | -11/Scrapyard | Entered Materials 57 | -10/Materials | Discovered new exit (range 8) 246 | -10/Materials | Discovered new exit (range 10) 306 | -10/Materials | Build established: Mutant 313 | -10/Materials | Core integrity fell below 50% 334 | -10/Materials | Discovered new exit (range 15) 396 | -10/Materials | Entered another Materials area 396 | -9/Materials | Evolved 2 slots: Propulsion x1, Utility x1 540 | -9/Materials | Lost 7 parts (1p2n4w) 662 | -9/Materials | Core integrity fell below 50% 925 | -9/Materials | Build established: Scavenger-Mutant 936 | -9/Materials | Core integrity fell below 20% 948 | -9/Materials | Destroyed by L-31 Rogue with Katana Last Messages --------------- 00824_ S-10 Pest destroyed. 00825_ K-01 Serf collects debris. 00846_ W-16 Scout sends out distress signal. 00872_ R-06 Scavenger collects Lgt. Ion Engine. 00877_ R-06 Scavenger collects Flight Unit. 00890_ Dropped Hvy. Assault Rifle. 00891_ Dropped Ion Engine. 00898_ G-34 Mercenary destroyed. 00904_ Lgt. Armor Plating destroyed. 00911_ Y-45 Defender destroyed. 00914_ Wheel destroyed. 00926_ Lgt. Treads destroyed. 00927_ Acquired Lgt. Treads. 00929_ Sml. Laser destroyed. 00929_ Particle Cannon destroyed. 00931_ Acquired Heat Sink. 00935_ Lgt. Treads destroyed. 00937_ Ion Engine destroyed. 00942_ Heat Sink destroyed. 00948_ K-01 Serf cleans the Terminal. Map ----- +----------------------------------------------------+ | ?????????????????# """ # ###########???????????? | | ?????????????????# """ # #?????????????????????? | | ?????????????????# """ + #?????????????????????? | | ?????????????????# """ # #?????????????????????? | | ?????????????????# """ # #???###???????????????? | | ?????????????????# # #???# ???????????????? | | ?????????????????# # #???# #???????????????? | | ?????????????????# # #???# #???????????????? | | ?????????????????# ! # [#???# #???????????????? | | ?????????????????# # %#???# #???????????????? | | ????????????#????# # =#???#*#???????????????? | | ?????????? #######+## ###?#[#???????????????? | | ????????? ###=#???????????????? | | ????????? % %%%=#???????????????? | | ???????? """ % ### #???????????????? | | ????????# """ ###/####/##??????????????? | | ????????# """ # ! *% #??????????????? | | ????????# # [!#??????????????? | | ????????# # #??????????????? | | ????????# """ # #??????????????? | | ????????# """ # #??????????????? | | ????????# """ # #??????????????? | | ????????# # #??????????????? | | ????????+ # #??????????????? | | ????????# """ ##l########??????????????? | | ????????? """ a@ #?????????????????????? | | ?????????#### """ #?????????????????????? | | ????????????# #?????????????????????? | | ???????????"" #?????????????????????? | | ???????????"T """ #?????????????????????? | | ???????????""k """ #?????????????????????? | | ????????????# """ #?????????????????????? | | ????????????# #?????????????????????? | | ????????????# #?????????????????????? | | ????????????# ? """ ?????????????????????? | | ????????????+??? """ ?????????????????????? | | ???????????????? """ #????????????????????? | | ???????????????????? +????????????????????? | | ???????????????????? #????????????????????? | | ????????????????????"" #????????????????????? | | ?????????????????????" a#????????????????????? | | ?????????????????????" ????????????????????? | | ??????????????????????? ?????????????????????? | | ?????????????????????????????????????????????????? | | ?????????????????????????????????????????????????? | | ?????????????????????????????????????????????????? | | ?????????????????????????????????????????????????? | | ?????????????????????????????????????????????????? | | ?????????????????????????????????????????????????? | | ?????????????????????????????????????????????????? | +----------------------------------------------------+ Best States ------------- Heat Dissipation 58 Energy Generation 10 Energy Capacity 250 Matter Stores 375 Matter Capacity 400 Sight Range 16 Terrain Scan Density 10 Armor Coverage 300 Evasion (%) 55 Recoil Reduction 2 Item Schematics ----------------- None Robot Schematics ------------------ None Fabricated ------------ Nothing Alien Tech Used ----------------- None Achievements -------------- None Challenges ------------ None Game ------ Seed FluxChargeBlade Manual? 0 Play Time 00:12:21 Cumulative 207.1 hours Start 2022.05.06 @ 16:34:12 End 2022.05.06 @ 16:44:04 Sessions 1 Manual Loads 0 Difficulty Rogue Special Mode None Game No. 313 Rogue 310 Adventurer 0 Explorer 3 Win Type - Total 8 Types 8/0/0/0/0/0/0/0/0 Lore% 68 Gallery% 70 Achievement% 59 Wizard Run 0 Options --------- ASCII 1 Keyboard 0 Movement Vi Keybinds 0 Fullscreen 1 Font 18/SmallcapsGlow Map View 76x50 Tactical HUD 1 Map Filters NONE Filters NONE Steam 1 RUN: d465b04d-90f1-43d3-b994-798822005171